[Event "Late-Titled-Tuesday-Blitz-January-23-2024"]
[Site "Chess.com"]
[Date "2024.01.23"]
[Round "8"]
[White "Boninknights"]
[Black "mjelcic"]
[Result "1-0"]
[WhiteElo "2378"]
[BlackElo "2209"]
[TimeControl "180+1"]
[EndTime "15:25:25 PST"]
[Termination "Boninknights won on time"]

1. d4 {[%clk 0:02:59]} 1... d5 {[%clk 0:02:56.4]} 2. Nf3 {[%clk 0:02:56.3]} 2...
Nf6 {[%clk 0:02:56.2]} 3. c4 {[%clk 0:02:56.2]} 3... c6 {[%clk 0:02:55.8]} 4.
Qb3 {[%clk 0:02:54.6]} 4... dxc4 {[%clk 0:02:48.7]} 5. Qxc4 {[%clk 0:02:53]}
5... Bf5 {[%clk 0:02:31.4]} 6. Nbd2 {[%clk 0:02:49.9]} 6... e6 {[%clk
0:02:30.8]} 7. g3 {[%clk 0:02:49.6]} 7... Qd5 {[%clk 0:02:26.3]} 8. Bg2 {[%clk
0:02:46.7]} 8... Qxc4 {[%clk 0:02:22.1]} 9. Nxc4 {[%clk 0:02:46.6]} 9... Nbd7
{[%clk 0:02:08.8]} 10. O-O {[%clk 0:02:42.9]} 10... Be7 {[%clk 0:02:07.6]} 11.
Na5 {[%clk 0:02:41]} 11... O-O-O {[%clk 0:01:49.8]} 12. a3 {[%clk 0:02:32.5]}
12... Be4 {[%clk 0:01:46.1]} 13. Ng5 {[%clk 0:02:26.6]} 13... Bxg2 {[%clk
0:01:44.2]} 14. Kxg2 {[%clk 0:02:25.8]} 14... Rhf8 {[%clk 0:01:42.1]} 15. b4
{[%clk 0:02:14.4]} 15... h6 {[%clk 0:01:41.9]} 16. Nf3 {[%clk 0:02:13]} 16... a6
{[%clk 0:01:02.6]} 17. Bb2 {[%clk 0:02:10.2]} 17... Nb6 {[%clk 0:00:59.4]} 18.
Ne5 {[%clk 0:02:04]} 18... Ne4 {[%clk 0:00:42.2]} 19. Rad1 {[%clk 0:01:55.4]}
19... Bf6 {[%clk 0:00:34.6]} 20. f3 {[%clk 0:01:45]} 20... Nd6 {[%clk
0:00:33.7]} 21. Nd3 {[%clk 0:01:40.5]} 21... Ndc4 {[%clk 0:00:32.9]} 22. Nxc4
{[%clk 0:01:35.1]} 22... Nxc4 {[%clk 0:00:33.1]} 23. Bc1 {[%clk 0:01:33.1]}
23... Bxd4 {[%clk 0:00:32.7]} 24. Nc5 {[%clk 0:01:25.4]} 24... Bxc5 {[%clk
0:00:27.4]} 25. bxc5 {[%clk 0:01:23.1]} 25... Rxd1 {[%clk 0:00:26.9]} 26. Rxd1
{[%clk 0:01:22]} 26... Rd8 {[%clk 0:00:27.8]} 27. Rxd8+ {[%clk 0:01:19.9]} 27...
Kxd8 {[%clk 0:00:28.7]} 28. e4 {[%clk 0:01:19.3]} 28... Kc7 {[%clk 0:00:25.6]}
29. Kf2 {[%clk 0:01:16.4]} 29... b5 {[%clk 0:00:23.4]} 30. cxb6+ {[%clk
0:01:15.8]} 30... Kxb6 {[%clk 0:00:23.8]} 31. Ke2 {[%clk 0:01:15]} 31... Kb5
{[%clk 0:00:24]} 32. Kd3 {[%clk 0:01:14.8]} 32... Ne5+ {[%clk 0:00:23.6]} 33.
Ke3 {[%clk 0:01:13.7]} 33... Ka4 {[%clk 0:00:23.9]} 34. f4 {[%clk 0:01:11.1]}
34... Nc4+ {[%clk 0:00:23.7]} 35. Kd4 {[%clk 0:01:11.2]} 35... Nxa3 {[%clk
0:00:21]} 36. Kc5 {[%clk 0:01:11]} 36... Kb3 {[%clk 0:00:15.7]} 37. Kxc6 {[%clk
0:01:09.9]} 37... a5 {[%clk 0:00:16.3]} 38. Kd7 {[%clk 0:01:08.8]} 38... a4
{[%clk 0:00:16.7]} 39. Ke7 {[%clk 0:01:08]} 39... Nc4 {[%clk 0:00:16.8]} 40.
Kxf7 {[%clk 0:01:05.4]} 40... Nb2 {[%clk 0:00:17]} 41. Kxg7 {[%clk 0:00:59.8]}
41... a3 {[%clk 0:00:17.2]} 42. f5 {[%clk 0:00:59.2]} 42... exf5 {[%clk
0:00:17.1]} 43. exf5 {[%clk 0:00:58.5]} 43... a2 {[%clk 0:00:17.4]} 44. f6
{[%clk 0:00:58.3]} 44... a1=Q {[%clk 0:00:16.3]} 45. f7 {[%clk 0:00:57.6]} 45...
Nd3+ {[%clk 0:00:14.6]} 46. Kg8 {[%clk 0:00:51.2]} 46... Qxc1 {[%clk 0:00:14.2]}
47. f8=Q {[%clk 0:00:50.3]} 47... Qg5+ {[%clk 0:00:14.3]} 48. Qg7 {[%clk
0:00:49.1]} 48... Kc4 {[%clk 0:00:14.1]} 49. Qxg5 {[%clk 0:00:43.7]} 49... hxg5
{[%clk 0:00:15]} 50. h4 {[%clk 0:00:42.8]} 50... g4 {[%clk 0:00:14.3]} 51. h5
{[%clk 0:00:42]} 51... Ne5 {[%clk 0:00:12.2]} 52. h6 {[%clk 0:00:41.7]} 52...
Ng6 {[%clk 0:00:11.3]} 53. h7 {[%clk 0:00:40.7]} 53... Kd5 {[%clk 0:00:10.9]}
54. Kg7 {[%clk 0:00:40.6]} 54... Ke6 {[%clk 0:00:01.8]} 55. Kxg6 {[%clk
0:00:39.9]} 1-0

[Event "Late-Titled-Tuesday-Blitz-January-23-2024"]
[Site "Chess.com"]
[Date "2024.01.23"]
[Round "8"]
[White "Sebastian"]
[Black "LyonBeast"]
[Result "0-1"]
[WhiteElo "3002"]
[BlackElo "3176"]
[TimeControl "180+1"]
[EndTime "15:25:26 PST"]
[Termination "LyonBeast won on time"]

1. e4 {[%clk 0:03:00.9]} 1... c5 {[%clk 0:02:57.4]} 2. Nf3 {[%clk 0:03:01.3]}
2... d6 {[%clk 0:02:57.9]} 3. d4 {[%clk 0:03:01.8]} 3... cxd4 {[%clk 0:02:58.8]}
4. Nxd4 {[%clk 0:03:02.5]} 4... Nf6 {[%clk 0:02:59.5]} 5. Nc3 {[%clk 0:03:02.4]}
5... a6 {[%clk 0:02:59.5]} 6. Be3 {[%clk 0:03:02.8]} 6... Ng4 {[%clk 0:02:59.7]}
7. Bc1 {[%clk 0:03:02.1]} 7... Nf6 {[%clk 0:03:00]} 8. f3 {[%clk 0:03:02.3]}
8... e6 {[%clk 0:03:00.6]} 9. g4 {[%clk 0:03:00.2]} 9... b5 {[%clk 0:02:50.8]}
10. g5 {[%clk 0:02:59.7]} 10... Nfd7 {[%clk 0:02:51]} 11. Be3 {[%clk 0:02:58.8]}
11... Bb7 {[%clk 0:02:45.9]} 12. Qd2 {[%clk 0:02:57.8]} 12... b4 {[%clk
0:02:45.2]} 13. Nce2 {[%clk 0:02:51]} 13... d5 {[%clk 0:02:43.8]} 14. exd5
{[%clk 0:02:43.2]} 14... Bxd5 {[%clk 0:02:44.7]} 15. Nf4 {[%clk 0:02:42.9]}
15... Ne5 {[%clk 0:02:41.9]} 16. O-O-O {[%clk 0:02:08.7]} 16... Bb7 {[%clk
0:02:35.8]} 17. Qf2 {[%clk 0:01:48.9]} 17... Nbd7 {[%clk 0:02:32.3]} 18. Ndxe6
{[%clk 0:01:32.1]} 18... fxe6 {[%clk 0:02:33.2]} 19. Nxe6 {[%clk 0:01:32.4]}
19... Qa5 {[%clk 0:02:33.5]} 20. Kb1 {[%clk 0:01:25.5]} 20... Rc8 {[%clk
0:02:29.8]} 21. Bh3 {[%clk 0:01:17.4]} 21... Bd5 {[%clk 0:02:29.2]} 22. b3
{[%clk 0:01:17.5]} 22... Rc6 {[%clk 0:02:19.9]} 23. Nd4 {[%clk 0:01:03.6]} 23...
Rc3 {[%clk 0:02:17.8]} 24. Rhe1 {[%clk 0:00:59]} 24... Bc5 {[%clk 0:01:56.8]}
25. Ne6 {[%clk 0:00:58.8]} 25... Bxe3 {[%clk 0:01:44.4]} 26. Rxe3 {[%clk
0:00:57.7]} 26... Qb6 {[%clk 0:01:44.8]} 27. Nxg7+ {[%clk 0:00:33.1]} 27... Kd8
{[%clk 0:01:40.8]} 28. Nf5 {[%clk 0:00:17.5]} 28... Be6 {[%clk 0:01:35.7]} 29.
Rd6 {[%clk 0:00:15.6]} 29... Qxe3 {[%clk 0:01:20.5]} 30. Nxe3 {[%clk 0:00:14.9]}
30... Bxh3 {[%clk 0:01:21.3]} 31. Nd5 {[%clk 0:00:14.3]} 31... Rxf3 {[%clk
0:01:18.9]} 32. Qb6+ {[%clk 0:00:12.9]} 32... Ke8 {[%clk 0:01:19.5]} 33. Qd4
{[%clk 0:00:05.2]} 33... Rhf8 {[%clk 0:01:15.8]} 34. Rxa6 {[%clk 0:00:03]} 34...
Rf1+ {[%clk 0:01:08]} 35. Kb2 {[%clk 0:00:02.7]} 35... R8f2 {[%clk 0:01:08.9]}
36. Nxb4 {[%clk 0:00:02.5]} 36... Bf5 {[%clk 0:01:07.3]} 37. Ra8+ {[%clk
0:00:02.8]} 37... Kf7 {[%clk 0:01:07.2]} 38. Ra7 {[%clk 0:00:03]} 38... Kg6
{[%clk 0:01:05.8]} 39. Qd6+ {[%clk 0:00:03.2]} 39... Kxg5 {[%clk 0:01:02.7]} 40.
Rc7 {[%clk 0:00:03.5]} 40... h6 {[%clk 0:00:56.1]} 41. Rc3 {[%clk 0:00:03.2]}
41... Rxh2 {[%clk 0:00:50.4]} 42. Qe7+ {[%clk 0:00:02.9]} 42... Kh5 {[%clk
0:00:47.5]} 43. Nd5 {[%clk 0:00:02.5]} 43... Ng6 {[%clk 0:00:44.9]} 44. Qb4
{[%clk 0:00:01.8]} 44... Rh4 {[%clk 0:00:32.9]} 45. Qa5 {[%clk 0:00:02.1]} 45...
Nge5 {[%clk 0:00:26.9]} 46. Ne3 {[%clk 0:00:02.5]} 46... Rf3 {[%clk 0:00:27.2]}
47. Nxf5 {[%clk 0:00:02.6]} 47... Rxf5 {[%clk 0:00:28.1]} 48. Qd5 {[%clk
0:00:02.4]} 48... Nf6 {[%clk 0:00:26.8]} 49. Qe6 {[%clk 0:00:02.5]} 49... Kg5
{[%clk 0:00:25.4]} 50. Rc5 {[%clk 0:00:02.3]} 50... Re4 {[%clk 0:00:25.2]} 51.
Rc8 {[%clk 0:00:02]} 51... Nd3+ {[%clk 0:00:25]} 52. cxd3 {[%clk 0:00:02.6]}
52... Rxe6 {[%clk 0:00:25.7]} 0-1

[Event "Late-Titled-Tuesday-Blitz-January-23-2024"]
[Site "Chess.com"]
[Date "2024.01.23"]
[Round "8"]
[White "DeArron_Fox"]
[Black "Crazy_girl99"]
[Result "1-0"]
[WhiteElo "2449"]
[BlackElo "2590"]
[TimeControl "180+1"]
[EndTime "15:25:26 PST"]
[Termination "DeArron_Fox won by checkmate"]

1. d4 {[%clk 0:03:00.9]} 1... Nf6 {[%clk 0:02:59.9]} 2. c4 {[%clk 0:03:00.2]}
2... e6 {[%clk 0:03:00.2]} 3. Nf3 {[%clk 0:03:00.1]} 3... b6 {[%clk 0:03:00.6]}
4. g3 {[%clk 0:02:59.9]} 4... Bb7 {[%clk 0:03:00.9]} 5. Bg2 {[%clk 0:03:00.4]}
5... Bb4+ {[%clk 0:02:59.9]} 6. Bd2 {[%clk 0:02:59.9]} 6... a5 {[%clk 0:03:00]}
7. O-O {[%clk 0:02:59.8]} 7... O-O {[%clk 0:03:00.2]} 8. Bf4 {[%clk 0:02:53]}
8... Na6 {[%clk 0:02:53.4]} 9. c5 {[%clk 0:02:22.8]} 9... bxc5 {[%clk
0:02:50.2]} 10. a3 {[%clk 0:02:22.7]} 10... cxd4 {[%clk 0:02:46.1]} 11. axb4
{[%clk 0:02:22.6]} 11... Nxb4 {[%clk 0:02:45.8]} 12. Nxd4 {[%clk 0:02:19.9]}
12... Bxg2 {[%clk 0:02:45.5]} 13. Kxg2 {[%clk 0:02:20.8]} 13... d6 {[%clk
0:02:45.2]} 14. Nc2 {[%clk 0:01:56.2]} 14... Qb8 {[%clk 0:02:41.5]} 15. Nba3
{[%clk 0:01:12.1]} 15... Qb7+ {[%clk 0:02:39]} 16. Kg1 {[%clk 0:01:09.7]} 16...
Nfd5 {[%clk 0:02:35.3]} 17. Bd2 {[%clk 0:01:08.5]} 17... Rfb8 {[%clk 0:02:32.2]}
18. Nc4 {[%clk 0:01:06.6]} 18... Qb5 {[%clk 0:02:23.6]} 19. b3 {[%clk
0:00:50.5]} 19... Nxc2 {[%clk 0:01:41.7]} 20. Qxc2 {[%clk 0:00:51.4]} 20... Qxb3
{[%clk 0:01:41.6]} 21. Qxb3 {[%clk 0:00:51.6]} 21... Rxb3 {[%clk 0:01:41.9]} 22.
Nxa5 {[%clk 0:00:47.2]} 22... Rb2 {[%clk 0:01:40.7]} 23. Nc4 {[%clk 0:00:47.5]}
23... Rbb8 {[%clk 0:01:32.9]} 24. e4 {[%clk 0:00:43.9]} 24... Nf6 {[%clk
0:01:30.6]} 25. f3 {[%clk 0:00:44.5]} 25... h6 {[%clk 0:01:30.9]} 26. e5 {[%clk
0:00:28.2]} 26... dxe5 {[%clk 0:01:21.9]} 27. Nxe5 {[%clk 0:00:29.1]} 27... Nd5
{[%clk 0:01:19.8]} 28. Rxa8 {[%clk 0:00:21.3]} 28... Rxa8 {[%clk 0:01:20.2]} 29.
Rc1 {[%clk 0:00:21.9]} 29... Ra2 {[%clk 0:01:19.4]} 30. Be1 {[%clk 0:00:19.7]}
30... f6 {[%clk 0:01:19.3]} 31. Nc6 {[%clk 0:00:17.5]} 31... Kf7 {[%clk
0:01:14.3]} 32. Nb4 {[%clk 0:00:16.3]} 32... Ra7 {[%clk 0:01:03.5]} 33. Nxd5
{[%clk 0:00:14]} 33... exd5 {[%clk 0:01:04.4]} 34. Bf2 {[%clk 0:00:04.8]} 34...
Rb7 {[%clk 0:01:04.5]} 35. Rc6 {[%clk 0:00:05.3]} 35... Ke7 {[%clk 0:01:03.7]}
36. Bc5+ {[%clk 0:00:04.2]} 36... Kd7 {[%clk 0:01:03.3]} 37. Ra6 {[%clk
0:00:05]} 37... Rb5 {[%clk 0:01:02.2]} 38. Bf8 {[%clk 0:00:05.2]} 38... Rb1+
{[%clk 0:00:58.1]} 39. Kg2 {[%clk 0:00:05.5]} 39... Rb2+ {[%clk 0:00:57.7]} 40.
Kh3 {[%clk 0:00:04.6]} 40... Rb6 {[%clk 0:00:48.3]} 41. Rxb6 {[%clk 0:00:03.6]}
41... cxb6 {[%clk 0:00:49.2]} 42. Bxg7 {[%clk 0:00:04.1]} 42... Ke6 {[%clk
0:00:48.5]} 43. Bxh6 {[%clk 0:00:03.5]} 43... b5 {[%clk 0:00:49.4]} 44. Bd2
{[%clk 0:00:03.3]} 44... d4 {[%clk 0:00:49.3]} 45. Kg4 {[%clk 0:00:03.8]} 45...
Kd5 {[%clk 0:00:50]} 46. h4 {[%clk 0:00:04.1]} 46... Kc4 {[%clk 0:00:50.3]} 47.
h5 {[%clk 0:00:04.4]} 47... Kd3 {[%clk 0:00:50.6]} 48. Ba5 {[%clk 0:00:04.4]}
48... Kc4 {[%clk 0:00:46.3]} 49. h6 {[%clk 0:00:03.7]} 49... b4 {[%clk
0:00:47.2]} 50. Bxb4 {[%clk 0:00:03.8]} 50... Kxb4 {[%clk 0:00:47.1]} 51. h7
{[%clk 0:00:04.7]} 51... d3 {[%clk 0:00:47.8]} 52. h8=Q {[%clk 0:00:05.6]} 52...
d2 {[%clk 0:00:48.3]} 53. Qd8 {[%clk 0:00:05.6]} 53... Kc3 {[%clk 0:00:48.4]}
54. Kf5 {[%clk 0:00:06.1]} 54... Kc2 {[%clk 0:00:48.8]} 55. Kxf6 {[%clk
0:00:06.5]} 55... d1=Q {[%clk 0:00:49.3]} 56. Qxd1+ {[%clk 0:00:07.2]} 56...
Kxd1 {[%clk 0:00:50]} 57. g4 {[%clk 0:00:07.6]} 57... Ke2 {[%clk 0:00:48.9]} 58.
g5 {[%clk 0:00:08.2]} 58... Kxf3 {[%clk 0:00:49.6]} 59. g6 {[%clk 0:00:09.1]}
59... Kf4 {[%clk 0:00:49.4]} 60. g7 {[%clk 0:00:10]} 60... Ke4 {[%clk
0:00:48.5]} 61. g8=Q {[%clk 0:00:10.9]} 61... Kf4 {[%clk 0:00:49]} 62. Qe6
{[%clk 0:00:11.8]} 62... Kf3 {[%clk 0:00:46.6]} 63. Qe5 {[%clk 0:00:12.7]} 63...
Kg4 {[%clk 0:00:46.4]} 64. Qf5+ {[%clk 0:00:12.8]} 64... Kg3 {[%clk 0:00:46.5]}
65. Kg5 {[%clk 0:00:13.7]} 65... Kg2 {[%clk 0:00:46.6]} 66. Qf4 {[%clk
0:00:14.5]} 66... Kg1 {[%clk 0:00:46.5]} 67. Qd2 {[%clk 0:00:13.6]} 67... Kh1
{[%clk 0:00:46.1]} 68. Kg4 {[%clk 0:00:14.5]} 68... Kg1 {[%clk 0:00:45.7]} 69.
Kg3 {[%clk 0:00:15.4]} 69... Kh1 {[%clk 0:00:46]} 70. Qd1# {[%clk 0:00:16]} 1-0

[Event "Late-Titled-Tuesday-Blitz-January-23-2024"]
[Site "Chess.com"]
[Date "2024.01.23"]
[Round "8"]
[White "Arifarsky"]
[Black "brunoo2003"]
[Result "0-1"]
[WhiteElo "2682"]
[BlackElo "2542"]
[TimeControl "180+1"]
[EndTime "15:25:29 PST"]
[Termination "brunoo2003 won by resignation"]

1. e4 {[%clk 0:03:00.9]} 1... e6 {[%clk 0:02:52.5]} 2. Nf3 {[%clk 0:03:01]} 2...
d5 {[%clk 0:02:53.2]} 3. Nc3 {[%clk 0:03:01.7]} 3... Nf6 {[%clk 0:02:52.6]} 4.
Bd3 {[%clk 0:03:00.8]} 4... c5 {[%clk 0:02:35.9]} 5. exd5 {[%clk 0:03:00.1]}
5... exd5 {[%clk 0:02:36.8]} 6. O-O {[%clk 0:03:01]} 6... Be7 {[%clk 0:02:36.6]}
7. Bb5+ {[%clk 0:02:55.3]} 7... Nc6 {[%clk 0:02:32.8]} 8. h3 {[%clk 0:02:48.2]}
8... O-O {[%clk 0:02:32.3]} 9. Bxc6 {[%clk 0:02:47.5]} 9... bxc6 {[%clk
0:02:24]} 10. Re1 {[%clk 0:02:47.7]} 10... Bf5 {[%clk 0:02:19.6]} 11. d3 {[%clk
0:02:45.1]} 11... Bd6 {[%clk 0:02:18.1]} 12. b3 {[%clk 0:02:42.7]} 12... h6
{[%clk 0:02:13.3]} 13. Na4 {[%clk 0:02:37.7]} 13... Nd7 {[%clk 0:01:54.5]} 14.
Ba3 {[%clk 0:02:32.4]} 14... g6 {[%clk 0:01:55.4]} 15. Qd2 {[%clk 0:02:23.6]}
15... Kh7 {[%clk 0:01:50.6]} 16. Qc3 {[%clk 0:02:19.8]} 16... a5 {[%clk
0:00:52.4]} 17. Nxc5 {[%clk 0:02:13.4]} 17... Nxc5 {[%clk 0:00:47.7]} 18. Bxc5
{[%clk 0:02:14.3]} 18... a4 {[%clk 0:00:46.2]} 19. b4 {[%clk 0:02:12.8]} 19...
Be6 {[%clk 0:00:35.4]} 20. a3 {[%clk 0:02:10.6]} 20... Re8 {[%clk 0:00:33]} 21.
Bxd6 {[%clk 0:02:00.2]} 21... Qxd6 {[%clk 0:00:32.9]} 22. Qf6 {[%clk 0:01:57.9]}
22... c5 {[%clk 0:00:28.3]} 23. Ne5 {[%clk 0:01:52]} 23... Ra7 {[%clk
0:00:22.9]} 24. b5 {[%clk 0:01:37.2]} 24... Rb7 {[%clk 0:00:18.2]} 25. Rab1
{[%clk 0:01:35.6]} 25... d4 {[%clk 0:00:16.6]} 26. Re4 {[%clk 0:01:23]} 26...
Qd8 {[%clk 0:00:15.7]} 27. Qf4 {[%clk 0:00:50.5]} 27... Bd5 {[%clk 0:00:15.9]}
28. Ree1 {[%clk 0:00:49.5]} 28... Qg5 {[%clk 0:00:16.4]} 29. Qxg5 {[%clk
0:00:44.6]} 29... hxg5 {[%clk 0:00:17.3]} 30. b6 {[%clk 0:00:25.7]} 30... Reb8
{[%clk 0:00:12.2]} 31. Rb5 {[%clk 0:00:25.2]} 31... Rxb6 {[%clk 0:00:06.5]} 32.
Rxc5 {[%clk 0:00:25.4]} 32... Rb5 {[%clk 0:00:05]} 33. Rc7 {[%clk 0:00:24.9]}
33... R8b7 {[%clk 0:00:03.4]} 34. Rc8 {[%clk 0:00:17.1]} 34... Rb2 {[%clk
0:00:03.3]} 35. Ng4 {[%clk 0:00:14.8]} 35... Be6 {[%clk 0:00:02.6]} 36. Nf6+
{[%clk 0:00:11]} 36... Kg7 {[%clk 0:00:02.9]} 37. Ne8+ {[%clk 0:00:11.7]} 37...
Kh7 {[%clk 0:00:03.3]} 38. Nf6+ {[%clk 0:00:11.3]} 38... Kg7 {[%clk 0:00:03]}
39. Ne4 {[%clk 0:00:12.1]} 39... Rb1 {[%clk 0:00:03.1]} 40. Kf1 {[%clk
0:00:09.2]} 40... Rxe1+ {[%clk 0:00:02.9]} 41. Kxe1 {[%clk 0:00:10.1]} 41...
Bxc8 {[%clk 0:00:03.3]} 0-1

[Event "Late-Titled-Tuesday-Blitz-January-23-2024"]
[Site "Chess.com"]
[Date "2024.01.23"]
[Round "8"]
[White "ContrVersia"]
[Black "ozates"]
[Result "0-1"]
[WhiteElo "2838"]
[BlackElo "2643"]
[TimeControl "180+1"]
[EndTime "15:25:34 PST"]
[Termination "ozates won by resignation"]

1. c4 {[%clk 0:03:00.9]} 1... c5 {[%clk 0:02:59.7]} 2. Nc3 {[%clk 0:02:59.7]}
2... Nc6 {[%clk 0:03:00.1]} 3. Nf3 {[%clk 0:02:59.9]} 3... g6 {[%clk 0:03:00.2]}
4. e3 {[%clk 0:03:00.2]} 4... Nf6 {[%clk 0:02:41.2]} 5. d4 {[%clk 0:03:00]} 5...
cxd4 {[%clk 0:02:42.1]} 6. exd4 {[%clk 0:03:00.8]} 6... d5 {[%clk 0:02:41.9]} 7.
cxd5 {[%clk 0:03:00.9]} 7... Nxd5 {[%clk 0:02:42.8]} 8. Qb3 {[%clk 0:03:00.6]}
8... e6 {[%clk 0:02:34.1]} 9. Bb5 {[%clk 0:02:58.9]} 9... Bg7 {[%clk 0:02:31.2]}
10. O-O {[%clk 0:02:58.8]} 10... O-O {[%clk 0:02:31.2]} 11. Bxc6 {[%clk
0:02:59.3]} 11... bxc6 {[%clk 0:02:31.6]} 12. Re1 {[%clk 0:02:59.8]} 12... Qb6
{[%clk 0:02:24.9]} 13. Qc2 {[%clk 0:02:55.6]} 13... Nxc3 {[%clk 0:02:08.1]} 14.
Qxc3 {[%clk 0:02:55.7]} 14... Rd8 {[%clk 0:02:07.9]} 15. Bg5 {[%clk 0:02:53]}
15... Rd5 {[%clk 0:02:07.3]} 16. Be3 {[%clk 0:02:47.1]} 16... Ba6 {[%clk
0:02:02.7]} 17. Rac1 {[%clk 0:02:45.5]} 17... Rc8 {[%clk 0:02:02.4]} 18. Qc2
{[%clk 0:02:27.6]} 18... h6 {[%clk 0:01:56]} 19. b3 {[%clk 0:02:26.6]} 19... g5
{[%clk 0:01:49.8]} 20. h3 {[%clk 0:02:26.7]} 20... Bb7 {[%clk 0:01:36.5]} 21. h4
{[%clk 0:02:21.3]} 21... g4 {[%clk 0:01:33.7]} 22. Ne5 {[%clk 0:02:21.1]} 22...
c5 {[%clk 0:01:10.7]} 23. dxc5 {[%clk 0:02:14.7]} 23... Qd8 {[%clk 0:01:10.9]}
24. Nxg4 {[%clk 0:01:56.2]} 24... Qxh4 {[%clk 0:01:10.5]} 25. f3 {[%clk
0:01:52]} 25... h5 {[%clk 0:00:55.5]} 26. Qf2 {[%clk 0:01:04.8]} 26... Qe7
{[%clk 0:00:34.6]} 27. Nh2 {[%clk 0:01:03.5]} 27... Bf6 {[%clk 0:00:26]} 28. Rc4
{[%clk 0:01:01.9]} 28... Kh8 {[%clk 0:00:23.7]} 29. Kh1 {[%clk 0:00:55.5]} 29...
Bc6 {[%clk 0:00:22.5]} 30. Bf4 {[%clk 0:00:46.1]} 30... Rg8 {[%clk 0:00:20.4]}
31. Bd6 {[%clk 0:00:45.6]} 31... Qd7 {[%clk 0:00:15.6]} 32. Nf1 {[%clk
0:00:45.6]} 32... Bb5 {[%clk 0:00:11.7]} 33. Rf4 {[%clk 0:00:43.9]} 33... Bg5
{[%clk 0:00:11]} 34. Rfe4 {[%clk 0:00:41.3]} 34... Bc6 {[%clk 0:00:09.7]} 35.
Re5 {[%clk 0:00:38.2]} 35... Rxe5 {[%clk 0:00:09.6]} 36. Rxe5 {[%clk 0:00:37]}
36... f6 {[%clk 0:00:10.2]} 37. Re1 {[%clk 0:00:34.9]} 37... e5 {[%clk
0:00:10.8]} 38. Ne3 {[%clk 0:00:27.5]} 38... Qg7 {[%clk 0:00:09.4]} 39. b4
{[%clk 0:00:21.1]} 39... Bf4 {[%clk 0:00:09.7]} 40. Nf1 {[%clk 0:00:19.5]} 40...
Qg5 {[%clk 0:00:09.3]} 41. a4 {[%clk 0:00:12.8]} 41... Bxa4 {[%clk 0:00:09.4]}
42. Qa2 {[%clk 0:00:12.9]} 42... Bb5 {[%clk 0:00:08.6]} 43. Be7 {[%clk
0:00:10.7]} 43... Qh4+ {[%clk 0:00:08.6]} 44. Kg1 {[%clk 0:00:09.7]} 44... Qxe1
{[%clk 0:00:08.8]} 45. Bxf6+ {[%clk 0:00:10.1]} 45... Kh7 {[%clk 0:00:05.8]} 46.
Qf7+ {[%clk 0:00:10]} 46... Kh6 {[%clk 0:00:06.4]} 0-1

[Event "Late-Titled-Tuesday-Blitz-January-23-2024"]
[Site "Chess.com"]
[Date "2024.01.23"]
[Round "8"]
[White "ChristopherYoo"]
[Black "mishanick"]
[Result "1-0"]
[WhiteElo "2993"]
[BlackElo "3061"]
[TimeControl "180+1"]
[EndTime "15:25:36 PST"]
[Termination "ChristopherYoo won by checkmate"]

1. e4 {[%clk 0:03:00.9]} 1... c5 {[%clk 0:03:00.7]} 2. Nf3 {[%clk 0:03:00.8]}
2... e6 {[%clk 0:03:01.4]} 3. g3 {[%clk 0:02:59.3]} 3... Nc6 {[%clk 0:03:00.9]}
4. Bg2 {[%clk 0:02:59.6]} 4... Nf6 {[%clk 0:03:01.6]} 5. Qe2 {[%clk 0:02:59.2]}
5... d5 {[%clk 0:02:57.6]} 6. exd5 {[%clk 0:02:55.6]} 6... Nxd5 {[%clk
0:02:57.7]} 7. O-O {[%clk 0:02:55.9]} 7... Be7 {[%clk 0:02:58]} 8. Rd1 {[%clk
0:02:56.2]} 8... Bf6 {[%clk 0:02:56]} 9. Nc3 {[%clk 0:02:54.8]} 9... O-O {[%clk
0:02:54.6]} 10. Ne4 {[%clk 0:02:54.4]} 10... Be7 {[%clk 0:02:54.7]} 11. c4
{[%clk 0:02:11.2]} 11... Ndb4 {[%clk 0:02:46.8]} 12. d3 {[%clk 0:02:10.7]} 12...
e5 {[%clk 0:02:43.4]} 13. h3 {[%clk 0:02:03]} 13... Bf5 {[%clk 0:02:24.1]} 14.
a3 {[%clk 0:02:01.3]} 14... Na6 {[%clk 0:02:23.9]} 15. Nc3 {[%clk 0:01:55.6]}
15... Bd6 {[%clk 0:02:19.4]} 16. Bg5 {[%clk 0:01:47.2]} 16... f6 {[%clk
0:02:16.9]} 17. Be3 {[%clk 0:01:46.3]} 17... Nc7 {[%clk 0:02:15.7]} 18. Nh4
{[%clk 0:01:29.4]} 18... Be6 {[%clk 0:02:14.4]} 19. Ne4 {[%clk 0:01:15.4]} 19...
Nd4 {[%clk 0:02:13.5]} 20. Bxd4 {[%clk 0:01:14.7]} 20... exd4 {[%clk 0:02:13.6]}
21. Nxd6 {[%clk 0:01:13.3]} 21... Qxd6 {[%clk 0:02:13.6]} 22. Bxb7 {[%clk
0:01:10.3]} 22... Rae8 {[%clk 0:02:11.6]} 23. Qh5 {[%clk 0:01:06.6]} 23... Bxh3
{[%clk 0:01:31]} 24. Re1 {[%clk 0:00:55]} 24... Bd7 {[%clk 0:01:26.2]} 25. Be4
{[%clk 0:00:45.1]} 25... f5 {[%clk 0:01:24.9]} 26. Bxf5 {[%clk 0:00:44.5]} 26...
Rxe1+ {[%clk 0:00:26.2]} 27. Rxe1 {[%clk 0:00:42.4]} 27... Bxf5 {[%clk
0:00:26.8]} 28. Nxf5 {[%clk 0:00:40.8]} 28... Qf6 {[%clk 0:00:27.2]} 29. Ne7+
{[%clk 0:00:29.4]} 29... Kh8 {[%clk 0:00:25.5]} 30. Re2 {[%clk 0:00:29.5]} 30...
Qd6 {[%clk 0:00:11.1]} 31. Qg4 {[%clk 0:00:20.3]} 31... Re8 {[%clk 0:00:08.5]}
32. Nf5 {[%clk 0:00:16.8]} 32... Qd7 {[%clk 0:00:09]} 33. Rxe8+ {[%clk
0:00:14.3]} 33... Nxe8 {[%clk 0:00:09.9]} 34. Qe4 {[%clk 0:00:11.5]} 34... h6
{[%clk 0:00:09.3]} 35. Qe5 {[%clk 0:00:09.4]} 35... Qc6 {[%clk 0:00:04.6]} 36.
Qe7 {[%clk 0:00:09.3]} 36... Kh7 {[%clk 0:00:04.1]} 37. Qf7 {[%clk 0:00:06.2]}
37... Qf3 {[%clk 0:00:03.1]} 38. Nxh6 {[%clk 0:00:02.8]} 38... Qd1+ {[%clk
0:00:02.7]} 39. Kg2 {[%clk 0:00:03]} 39... Nf6 {[%clk 0:00:03.3]} 40. Nf5 {[%clk
0:00:03]} 40... Qg4 {[%clk 0:00:04.1]} 41. Nh4 {[%clk 0:00:02.3]} 41... Qe2
{[%clk 0:00:03.6]} 42. Qg6+ {[%clk 0:00:02.6]} 42... Kg8 {[%clk 0:00:03.9]} 43.
Nf5 {[%clk 0:00:03.1]} 43... Ne8 {[%clk 0:00:03]} 44. Nh6+ {[%clk 0:00:03.1]}
44... Kh8 {[%clk 0:00:03]} 45. Nf7+ {[%clk 0:00:03.3]} 45... Kg8 {[%clk
0:00:03.7]} 46. Ng5 {[%clk 0:00:03.8]} 46... Qe7 {[%clk 0:00:03.1]} 47. Qh7+
{[%clk 0:00:04]} 47... Kf8 {[%clk 0:00:03.7]} 48. Qh8# {[%clk 0:00:04.9]} 1-0